[Event "Titled Tuesday Blitz April 11 Early 2023"]
[White "Anton Guijarro, David"]
[Black "Nakamura, Hikaru"]
[WhiteFideId "2285525"]
[BlackFideId "2016192"]
[WhiteElo "2618"]
[BlackElo "2885"]
[Result "0-1"]
[Round "10"]
[TimeControl "180+2"]
[Date "2023.04.11"]
[WhiteClock "0:00:03"]
[BlackClock "0:00:27"]

1. d4 {[%clk 0:03:00]}  Nf6 {[%clk 0:03:00]} 2. Nf3 {[%clk 0:03:01]}  e6 {[%clk 0:02:56]} 3. Bg5 {[%clk 0:03:00]}  h6 {[%clk 0:02:52]} 4. Bxf6 {[%clk 0:02:59]}  Qxf6 {[%clk 0:02:52]} 5. e4 {[%clk 0:03:00]}  d6 {[%clk 0:02:47]} 6. Nc3 {[%clk 0:02:57]}  Qe7 {[%clk 0:02:46]} 7. a4 {[%clk 0:02:53]}  a6 {[%clk 0:02:46]} 8. Bc4 {[%clk 0:02:45]}  g6 {[%clk 0:02:45]} 9. O-O {[%clk 0:02:42]}  Bg7 {[%clk 0:02:45]} 10. Re1 {[%clk 0:02:40]}  Nd7 {[%clk 0:02:40]} 11. a5 {[%clk 0:02:34]}  O-O {[%clk 0:02:38]} 12. Qd2 {[%clk 0:02:31]}  Rd8 {[%clk 0:02:27]} 13. d5 {[%clk 0:02:13]}  e5 {[%clk 0:02:22]} 14. b4 {[%clk 0:02:11]}  Nf8 {[%clk 0:02:15]} 15. h3 {[%clk 0:01:18]}  f5 {[%clk 0:02:13]} 16. Rab1 {[%clk 0:01:12]}  f4 {[%clk 0:02:04]} 17. Be2 {[%clk 0:01:10]}  Nh7 {[%clk 0:02:01]} 18. Na4 {[%clk 0:01:01]}  h5 {[%clk 0:02:00]} 19. c4 {[%clk 0:00:55]}  g5 {[%clk 0:02:00]} 20. Nh2 {[%clk 0:00:55]}  Nf6 {[%clk 0:01:57]} 21. Qd1 {[%clk 0:00:46]}  Bd7 {[%clk 0:01:55]} 22. Nc3 {[%clk 0:00:44]}  Qf7 {[%clk 0:01:55]} 23. Ra1 {[%clk 0:00:42]}  Qg6 {[%clk 0:01:55]} 24. f3 {[%clk 0:00:40]}  Bf8 {[%clk 0:01:53]} 25. Ra3 {[%clk 0:00:38]}  Be7 {[%clk 0:01:52]} 26. b5 {[%clk 0:00:37]}  Kf7 {[%clk 0:01:47]} 27. bxa6 {[%clk 0:00:36]}  bxa6 {[%clk 0:01:48]} 28. Rb3 {[%clk 0:00:31]}  Ra7 {[%clk 0:01:35]} 29. Qb1 {[%clk 0:00:25]}  g4 {[%clk 0:01:29]} 30. hxg4 {[%clk 0:00:25]}  hxg4 {[%clk 0:01:30]} 31. Nxg4 {[%clk 0:00:25]}  Bxg4 {[%clk 0:01:28]} 32. fxg4 {[%clk 0:00:26]}  Nd7 {[%clk 0:01:28]} 33. Rb7 {[%clk 0:00:23]}  Rxb7 {[%clk 0:01:11]} 34. Qxb7 {[%clk 0:00:24]}  Nc5 {[%clk 0:01:09]} 35. Qxc7 {[%clk 0:00:23]}  Rh8 {[%clk 0:01:10]} 36. Bf3 {[%clk 0:00:19]}  Qh6 {[%clk 0:01:09]} 37. Kf1 {[%clk 0:00:18]}  Qh2 {[%clk 0:00:57]} 38. Ke2 {[%clk 0:00:18]}  Rh3 {[%clk 0:00:57]} 39. Kd1 {[%clk 0:00:13]}  Rxf3 {[%clk 0:00:51]} 40. gxf3 {[%clk 0:00:13]}  Qf2 {[%clk 0:00:52]} 41. Ne2 {[%clk 0:00:06]}  Qxf3 {[%clk 0:00:51]} 42. Qc8 {[%clk 0:00:06]}  Qb3+ {[%clk 0:00:46]} 43. Kc1 {[%clk 0:00:05]}  Qxc4+ {[%clk 0:00:44]} 44. Kd1 {[%clk 0:00:05]}  Qa4+ {[%clk 0:00:29]} 45. Kc1 {[%clk 0:00:02]}  Qa1+ {[%clk 0:00:29]} 46. Kd2 {[%clk 0:00:02]}  Qb2+ {[%clk 0:00:27]} 47. Kd1 {[%clk 0:00:02]}  Qb1+ {[%clk 0:00:27]} 48. Kd2 {[%clk 0:00:03]}  Nxe4# {[%clk 0:00:27]} 0-1


[Site "https://www.chess.com"]

[Event "Titled Tuesday Blitz April 11 Early 2023"]
[White "Narayanan, Srinath"]
[Black "Bortnyk, Olexandr"]
[WhiteFideId "5018420"]
[BlackFideId "14120828"]
[WhiteElo "2438"]
[BlackElo "2734"]
[Result "0-1"]
[Round "10"]
[TimeControl "180+2"]
[Date "2023.04.11"]
[WhiteClock "0:00:33"]
[BlackClock "0:00:48"]

1. Nf3 {[%clk 0:03:00]}  Nf6 {[%clk 0:02:59]} 2. c4 {[%clk 0:03:01]}  b6 {[%clk 0:02:59]} 3. g3 {[%clk 0:02:59]}  Bb7 {[%clk 0:02:59]} 4. Bg2 {[%clk 0:03:00]}  g6 {[%clk 0:03:00]} 5. O-O {[%clk 0:03:00]}  Bg7 {[%clk 0:03:00]} 6. Nc3 {[%clk 0:03:00]}  O-O {[%clk 0:03:00]} 7. Qc2 {[%clk 0:03:00]}  Na6 {[%clk 0:02:53]} 8. d4 {[%clk 0:02:59]}  e6 {[%clk 0:02:41]} 9. a3 {[%clk 0:02:58]}  d5 {[%clk 0:02:28]} 10. cxd5 {[%clk 0:02:56]}  exd5 {[%clk 0:02:29]} 11. Bf4 {[%clk 0:02:56]}  c5 {[%clk 0:02:29]} 12. Rfd1 {[%clk 0:02:55]}  Re8 {[%clk 0:02:21]} 13. dxc5 {[%clk 0:02:46]}  Nxc5 {[%clk 0:02:15]} 14. Nd4 {[%clk 0:02:42]}  a6 {[%clk 0:02:10]} 15. Bg5 {[%clk 0:02:38]}  Rc8 {[%clk 0:02:02]} 16. e3 {[%clk 0:02:31]}  Qd7 {[%clk 0:02:00]} 17. Qe2 {[%clk 0:02:30]}  Nfe4 {[%clk 0:01:59]} 18. Nxe4 {[%clk 0:02:15]}  dxe4 {[%clk 0:02:00]} 19. Bf4 {[%clk 0:02:00]}  Nd3 {[%clk 0:01:57]} 20. Rd2 {[%clk 0:01:29]}  Bxd4 {[%clk 0:01:38]} 21. exd4 {[%clk 0:01:30]}  Nxf4 {[%clk 0:01:38]} 22. gxf4 {[%clk 0:01:30]}  Bd5 {[%clk 0:01:37]} 23. Qe3 {[%clk 0:01:29]}  f5 {[%clk 0:01:29]} 24. h4 {[%clk 0:01:28]}  h5 {[%clk 0:01:25]} 25. Kh2 {[%clk 0:01:26]}  Kf7 {[%clk 0:01:24]} 26. Rg1 {[%clk 0:01:25]}  Rc6 {[%clk 0:01:24]} 27. Qg3 {[%clk 0:01:24]}  Rec8 {[%clk 0:01:20]} 28. Re2 {[%clk 0:01:21]}  Bc4 {[%clk 0:01:10]} 29. Rd2 {[%clk 0:01:20]}  Qd6 {[%clk 0:01:07]} 30. d5 {[%clk 0:00:54]}  Rc5 {[%clk 0:01:07]} 31. Bh3 {[%clk 0:00:54]}  Qf6 {[%clk 0:01:07]} 32. d6 {[%clk 0:00:54]}  Bd3 {[%clk 0:01:02]} 33. d7 {[%clk 0:00:45]}  Rd8 {[%clk 0:01:02]} 34. f3 {[%clk 0:00:45]}  Rc2 {[%clk 0:00:51]} 35. Rxc2 {[%clk 0:00:43]}  Bxc2 {[%clk 0:00:52]} 36. fxe4 {[%clk 0:00:44]}  Bxe4 {[%clk 0:00:53]} 37. Qb3+ {[%clk 0:00:38]}  Kg7 {[%clk 0:00:52]} 38. Rd1 {[%clk 0:00:38]}  Qxh4 {[%clk 0:00:52]} 39. Qxb6 {[%clk 0:00:34]}  Qxf4+ {[%clk 0:00:52]} 40. Kg1 {[%clk 0:00:33]}  Qg3+ {[%clk 0:00:53]} 41. Kf1 {[%clk 0:00:33]}  Qxh3+ {[%clk 0:00:49]} 42. Ke1 {[%clk 0:00:34]}  Qg3+ {[%clk 0:00:48]} 43. Kf1 {[%clk 0:00:33]}  Bd3+ {[%clk 0:00:48]} 0-1


[Site "https://www.chess.com"]

[Event "Titled Tuesday Blitz April 11 Early 2023"]
[White "Movahed, Sina"]
[Black "Duda, Jan-Krzysztof"]
[WhiteFideId "42520835"]
[BlackFideId "1170546"]
[WhiteElo "2225"]
[BlackElo "2790"]
[Result "0-1"]
[Round "10"]
[TimeControl "180+2"]
[Date "2023.04.11"]
[WhiteClock "0:00:06"]
[BlackClock "0:00:10"]

1. Nf3 {[%clk 0:03:00]}  e6 {[%clk 0:02:58]} 2. g3 {[%clk 0:03:00]}  b6 {[%clk 0:02:59]} 3. Bg2 {[%clk 0:03:00]}  Bb7 {[%clk 0:02:59]} 4. O-O {[%clk 0:03:01]}  d5 {[%clk 0:02:58]} 5. c4 {[%clk 0:03:00]}  dxc4 {[%clk 0:02:58]} 6. Qc2 {[%clk 0:02:53]}  Nd7 {[%clk 0:02:57]} 7. Qxc4 {[%clk 0:02:53]}  c5 {[%clk 0:02:58]} 8. Nc3 {[%clk 0:02:53]}  a6 {[%clk 0:02:58]} 9. a4 {[%clk 0:02:51]}  Ngf6 {[%clk 0:02:57]} 10. Rd1 {[%clk 0:02:51]}  Be7 {[%clk 0:02:55]} 11. d4 {[%clk 0:02:49]}  Rc8 {[%clk 0:02:51]} 12. dxc5 {[%clk 0:02:45]}  Rxc5 {[%clk 0:02:51]} 13. Qb3 {[%clk 0:02:45]}  Qc8 {[%clk 0:02:27]} 14. Be3 {[%clk 0:02:43]}  Rc4 {[%clk 0:02:28]} 15. Rac1 {[%clk 0:02:17]}  O-O {[%clk 0:02:27]} 16. Qa2 {[%clk 0:02:07]}  h6 {[%clk 0:02:17]} 17. Rc2 {[%clk 0:01:51]}  b5 {[%clk 0:02:09]} 18. axb5 {[%clk 0:01:46]}  axb5 {[%clk 0:02:10]} 19. Rcd2 {[%clk 0:01:46]}  Bc6 {[%clk 0:01:55]} 20. Bd4 {[%clk 0:01:12]}  Qb7 {[%clk 0:01:52]} 21. b3 {[%clk 0:01:08]}  Rb4 {[%clk 0:01:50]} 22. Qb2 {[%clk 0:01:06]}  e5 {[%clk 0:01:26]} 23. Be3 {[%clk 0:01:01]}  Ra8 {[%clk 0:01:15]} 24. Na2 {[%clk 0:00:46]}  Re4 {[%clk 0:01:12]} 25. Nc3 {[%clk 0:00:42]}  Rxe3 {[%clk 0:01:12]} 26. fxe3 {[%clk 0:00:42]}  Bc5 {[%clk 0:01:13]} 27. Kf1 {[%clk 0:00:34]}  Ng4 {[%clk 0:01:11]} 28. Rd3 {[%clk 0:00:24]}  e4 {[%clk 0:00:57]} 29. Nd4 {[%clk 0:00:23]}  Bxd4 {[%clk 0:00:33]} 30. Rxd4 {[%clk 0:00:20]}  Nxe3+ {[%clk 0:00:34]} 31. Kg1 {[%clk 0:00:19]}  Nxd1 {[%clk 0:00:34]} 32. Nxd1 {[%clk 0:00:19]}  Nf6 {[%clk 0:00:30]} 33. Ne3 {[%clk 0:00:19]}  Qb6 {[%clk 0:00:28]} 34. h3 {[%clk 0:00:19]}  Ra2 {[%clk 0:00:23]} 35. Qc3 {[%clk 0:00:14]}  Rxe2 {[%clk 0:00:23]} 36. Bf1 {[%clk 0:00:15]}  b4 {[%clk 0:00:18]} 37. Qc1 {[%clk 0:00:06]}  Qxd4 {[%clk 0:00:17]} 38. Bxe2 {[%clk 0:00:06]}  Nd5 {[%clk 0:00:18]} 39. Kf2 {[%clk 0:00:05]}  Kh7 {[%clk 0:00:16]} 40. Bc4 {[%clk 0:00:05]}  f5 {[%clk 0:00:07]} 41. Bxd5 {[%clk 0:00:05]}  Bxd5 {[%clk 0:00:08]} 42. Qe1 {[%clk 0:00:04]}  Bxb3 {[%clk 0:00:08]} 43. Kg2 {[%clk 0:00:05]}  Be6 {[%clk 0:00:08]} 44. Nc2 {[%clk 0:00:04]}  Qb2 {[%clk 0:00:08]} 45. Qf2 {[%clk 0:00:04]}  b3 {[%clk 0:00:08]} 46. Nd4 {[%clk 0:00:05]}  Qxf2+ {[%clk 0:00:09]} 47. Kxf2 {[%clk 0:00:06]}  b2 {[%clk 0:00:10]} 0-1


[Site "https://www.chess.com"]

[Event "Titled Tuesday Blitz April 11 Early 2023"]
[White "Drygalov, Andrey"]
[Black "Andreikin, Dmitry"]
[WhiteFideId "24171735"]
[BlackFideId "4158814"]
[WhiteElo "2466"]
[BlackElo "2736"]
[Result "0-1"]
[Round "10"]
[TimeControl "180+2"]
[Date "2023.04.11"]
[WhiteClock "0:00:08"]
[BlackClock "0:01:16"]

1. e4 {[%clk 0:03:00]}  c5 {[%clk 0:02:55]} 2. Nf3 {[%clk 0:02:51]}  e6 {[%clk 0:02:55]} 3. d4 {[%clk 0:02:49]}  cxd4 {[%clk 0:02:56]} 4. Nxd4 {[%clk 0:02:50]}  Nc6 {[%clk 0:02:57]} 5. Nc3 {[%clk 0:02:50]}  a6 {[%clk 0:02:57]} 6. Be2 {[%clk 0:02:51]}  Qc7 {[%clk 0:02:56]} 7. Nxc6 {[%clk 0:02:50]}  bxc6 {[%clk 0:02:56]} 8. Qd3 {[%clk 0:02:50]}  d5 {[%clk 0:02:42]} 9. Qg3 {[%clk 0:02:46]}  Qxg3 {[%clk 0:02:42]} 10. hxg3 {[%clk 0:02:46]}  Rb8 {[%clk 0:02:43]} 11. g4 {[%clk 0:02:42]}  Bd6 {[%clk 0:02:38]} 12. b3 {[%clk 0:02:14]}  Nf6 {[%clk 0:02:36]} 13. g5 {[%clk 0:02:10]}  Be5 {[%clk 0:02:36]} 14. Bb2 {[%clk 0:01:17]}  Nxe4 {[%clk 0:02:35]} 15. Nxe4 {[%clk 0:01:17]}  Bxb2 {[%clk 0:02:35]} 16. Rb1 {[%clk 0:01:18]}  Ba3 {[%clk 0:02:29]} 17. Nd2 {[%clk 0:01:13]}  e5 {[%clk 0:02:23]} 18. Nf3 {[%clk 0:01:10]}  Bb4+ {[%clk 0:02:13]} 19. Kd1 {[%clk 0:01:08]}  Bc3 {[%clk 0:02:09]} 20. Ne1 {[%clk 0:01:03]}  e4 {[%clk 0:02:07]} 21. g3 {[%clk 0:01:03]}  Rb4 {[%clk 0:01:57]} 22. Ng2 {[%clk 0:00:43]}  Rd4+ {[%clk 0:01:57]} 23. Kc1 {[%clk 0:00:44]}  a5 {[%clk 0:01:48]} 24. Ne3 {[%clk 0:00:43]}  Rd2 {[%clk 0:01:43]} 25. Re1 {[%clk 0:00:42]}  h6 {[%clk 0:01:34]} 26. g6 {[%clk 0:00:09]}  fxg6 {[%clk 0:01:33]} 27. Nd1 {[%clk 0:00:07]}  Rxc2+ {[%clk 0:01:32]} 28. Kxc2 {[%clk 0:00:08]}  Bxe1 {[%clk 0:01:32]} 29. a3 {[%clk 0:00:07]}  O-O {[%clk 0:01:30]} 30. b4 {[%clk 0:00:07]}  axb4 {[%clk 0:01:30]} 31. axb4 {[%clk 0:00:08]}  Bxf2 {[%clk 0:01:31]} 32. g4 {[%clk 0:00:08]}  Bd4 {[%clk 0:01:23]} 33. b5 {[%clk 0:00:08]}  cxb5 {[%clk 0:01:23]} 34. Rxb5 {[%clk 0:00:07]}  Be6 {[%clk 0:01:24]} 35. Rb7 {[%clk 0:00:07]}  Rf4 {[%clk 0:01:18]} 36. Kd2 {[%clk 0:00:07]}  Bxg4 {[%clk 0:01:17]} 37. Bxg4 {[%clk 0:00:07]}  Rxg4 {[%clk 0:01:18]} 38. Rd7 {[%clk 0:00:07]}  Rg2+ {[%clk 0:01:15]} 39. Ke1 {[%clk 0:00:08]}  Rg5 {[%clk 0:01:16]} 40. Ke2 {[%clk 0:00:08]}  h5 {[%clk 0:01:16]} 41. Ne3 {[%clk 0:00:08]}  Bxe3 {[%clk 0:01:15]} 42. Kxe3 {[%clk 0:00:09]}  Rf5 {[%clk 0:01:16]} 43. Rb7 {[%clk 0:00:07]}  h4 {[%clk 0:01:16]} 44. Rb1 {[%clk 0:00:08]}  h3 {[%clk 0:01:15]} 45. Rh1 {[%clk 0:00:08]}  Rh5 {[%clk 0:01:16]} 0-1


[Site "https://www.chess.com"]

[Event "Titled Tuesday Blitz April 11 Early 2023"]
[White "Terry, Renato"]
[Black "Aravindh, Chithambaram VR."]
[WhiteFideId "3803457"]
[BlackFideId "5072786"]
[WhiteElo "2575"]
[BlackElo "2596"]
[Result "0-1"]
[Round "10"]
[TimeControl "180+2"]
[Date "2023.04.11"]
[WhiteClock "0:00:01"]
[BlackClock "0:00:06"]

1. d4 {[%clk 0:03:00]}  g6 {[%clk 0:02:56]} 2. Nf3 {[%clk 0:02:58]}  Bg7 {[%clk 0:02:57]} 3. e4 {[%clk 0:02:57]}  d6 {[%clk 0:02:56]} 4. c3 {[%clk 0:02:56]}  Nf6 {[%clk 0:02:56]} 5. Bd3 {[%clk 0:02:55]}  O-O {[%clk 0:02:56]} 6. Bg5 {[%clk 0:02:56]}  Nc6 {[%clk 0:02:52]} 7. O-O {[%clk 0:02:52]}  e5 {[%clk 0:02:51]} 8. dxe5 {[%clk 0:02:50]}  dxe5 {[%clk 0:02:51]} 9. Qc2 {[%clk 0:02:45]}  h6 {[%clk 0:02:50]} 10. Bh4 {[%clk 0:02:45]}  Qe8 {[%clk 0:02:47]} 11. Na3 {[%clk 0:02:39]}  a6 {[%clk 0:02:47]} 12. Nc4 {[%clk 0:02:37]}  Nh5 {[%clk 0:02:48]} 13. Rfe1 {[%clk 0:02:35]}  Bg4 {[%clk 0:02:46]} 14. Nfd2 {[%clk 0:02:35]}  Nf4 {[%clk 0:02:29]} 15. Bf1 {[%clk 0:02:35]}  Be6 {[%clk 0:02:23]} 16. a4 {[%clk 0:02:29]}  f5 {[%clk 0:02:23]} 17. exf5 {[%clk 0:02:23]}  gxf5 {[%clk 0:02:24]} 18. b4 {[%clk 0:02:14]}  e4 {[%clk 0:02:11]} 19. f3 {[%clk 0:02:12]}  b5 {[%clk 0:01:52]} 20. Na3 {[%clk 0:01:56]}  e3 {[%clk 0:01:20]} 21. Nb3 {[%clk 0:01:21]}  Nd5 {[%clk 0:01:19]} 22. axb5 {[%clk 0:01:17]}  axb5 {[%clk 0:01:20]} 23. Nxb5 {[%clk 0:01:16]}  Rxa1 {[%clk 0:01:19]} 24. Nxa1 {[%clk 0:01:08]}  Qh5 {[%clk 0:01:17]} 25. g3 {[%clk 0:00:53]}  Nxc3 {[%clk 0:01:16]} 26. Rxe3 {[%clk 0:00:42]}  Nd4 {[%clk 0:01:08]} 27. Nxd4 {[%clk 0:00:29]}  Bxd4 {[%clk 0:01:07]} 28. Qd3 {[%clk 0:00:30]}  Nb5 {[%clk 0:00:43]} 29. Nc2 {[%clk 0:00:28]}  f4 {[%clk 0:00:23]} 30. Nxd4 {[%clk 0:00:22]}  Nxd4 {[%clk 0:00:24]} 31. Rxe6 {[%clk 0:00:13]}  Nxe6 {[%clk 0:00:24]} 32. Qb3 {[%clk 0:00:13]}  Qe5 {[%clk 0:00:24]} 33. Bc4 {[%clk 0:00:13]}  Re8 {[%clk 0:00:15]} 34. gxf4 {[%clk 0:00:13]}  Qf5 {[%clk 0:00:10]} 35. Bg3 {[%clk 0:00:14]}  h5 {[%clk 0:00:09]} 36. Kg2 {[%clk 0:00:12]}  Kf8 {[%clk 0:00:08]} 37. Qc3 {[%clk 0:00:06]}  Nxf4+ {[%clk 0:00:06]} 38. Bxf4 {[%clk 0:00:04]}  Qxf4 {[%clk 0:00:07]} 39. Qh8+ {[%clk 0:00:04]}  Ke7 {[%clk 0:00:08]} 40. Qg7+ {[%clk 0:00:03]}  Kd8 {[%clk 0:00:08]} 41. Bf7 {[%clk 0:00:01]}  Re2+ {[%clk 0:00:06]} 42. Kh3 {[%clk 0:00:01]}  Rxh2# {[%clk 0:00:06]} 0-1


[Site "https://www.chess.com"]

[Event "Titled Tuesday Blitz April 11 Early 2023"]
[White "Kollars, Dmitrij"]
[Black "Ashraf, Artin"]
[WhiteFideId "12909572"]
[BlackFideId "22514805"]
[WhiteElo "2584"]
[BlackElo "2188"]
[Result "0-1"]
[Round "10"]
[TimeControl "180+2"]
[Date "2023.04.11"]
[WhiteClock "0:00:03"]
[BlackClock "0:00:07"]

1. e4 {[%clk 0:03:00]}  c5 {[%clk 0:02:59]} 2. Nf3 {[%clk 0:03:00]}  d6 {[%clk 0:03:00]} 3. d4 {[%clk 0:02:59]}  cxd4 {[%clk 0:03:01]} 4. Nxd4 {[%clk 0:03:00]}  Nf6 {[%clk 0:03:01]} 5. Nc3 {[%clk 0:03:00]}  a6 {[%clk 0:03:02]} 6. Be2 {[%clk 0:02:57]}  e5 {[%clk 0:03:01]} 7. Nb3 {[%clk 0:02:57]}  Be7 {[%clk 0:03:01]} 8. O-O {[%clk 0:02:56]}  O-O {[%clk 0:03:00]} 9. Qd3 {[%clk 0:02:56]}  Be6 {[%clk 0:02:59]} 10. Be3 {[%clk 0:02:55]}  Nbd7 {[%clk 0:02:59]} 11. Nd5 {[%clk 0:02:52]}  Bxd5 {[%clk 0:02:57]} 12. exd5 {[%clk 0:02:53]}  Nc5 {[%clk 0:02:58]} 13. Nxc5 {[%clk 0:02:52]}  dxc5 {[%clk 0:02:59]} 14. c4 {[%clk 0:02:50]}  e4 {[%clk 0:02:48]} 15. Qc2 {[%clk 0:02:46]}  h6 {[%clk 0:02:47]} 16. a3 {[%clk 0:02:44]}  Bd6 {[%clk 0:02:45]} 17. Rad1 {[%clk 0:02:34]}  Qe7 {[%clk 0:02:42]} 18. b4 {[%clk 0:02:29]}  Nd7 {[%clk 0:02:21]} 19. Rb1 {[%clk 0:02:07]}  cxb4 {[%clk 0:01:36]} 20. axb4 {[%clk 0:02:08]}  Bxb4 {[%clk 0:01:36]} 21. Bd4 {[%clk 0:02:06]}  a5 {[%clk 0:01:30]} 22. Kh1 {[%clk 0:01:51]}  f5 {[%clk 0:01:26]} 23. f3 {[%clk 0:01:52]}  e3 {[%clk 0:01:01]} 24. f4 {[%clk 0:01:48]}  Bc5 {[%clk 0:01:01]} 25. Ba1 {[%clk 0:01:17]}  b6 {[%clk 0:00:57]} 26. Rf3 {[%clk 0:01:17]}  Qe4 {[%clk 0:00:22]} 27. Bd3 {[%clk 0:01:12]}  Qe7 {[%clk 0:00:21]} 28. Bxf5 {[%clk 0:01:09]}  Nf6 {[%clk 0:00:16]} 29. Be6+ {[%clk 0:01:09]}  Kh8 {[%clk 0:00:17]} 30. Rg3 {[%clk 0:00:56]}  Ra7 {[%clk 0:00:12]} 31. Be5 {[%clk 0:00:47]}  a4 {[%clk 0:00:11]} 32. Rh3 {[%clk 0:00:42]}  Qe8 {[%clk 0:00:07]} 33. Qf5 {[%clk 0:00:31]}  Nh7 {[%clk 0:00:05]} 34. Qg4 {[%clk 0:00:26]}  Rf6 {[%clk 0:00:05]} 35. Bf5 {[%clk 0:00:14]}  Qf8 {[%clk 0:00:03]} 36. Bd3 {[%clk 0:00:09]}  a3 {[%clk 0:00:03]} 37. Qf3 {[%clk 0:00:09]}  a2 {[%clk 0:00:03]} 38. Ra1 {[%clk 0:00:10]}  Bb4 {[%clk 0:00:02]} 39. Qe4 {[%clk 0:00:10]}  Qg8 {[%clk 0:00:03]} 40. Rg3 {[%clk 0:00:10]}  Bc5 {[%clk 0:00:02]} 41. h3 {[%clk 0:00:09]}  Ra3 {[%clk 0:00:02]} 42. Rg6 {[%clk 0:00:09]}  Ra7 {[%clk 0:00:03]} 43. Rg4 {[%clk 0:00:09]}  Ra3 {[%clk 0:00:02]} 44. Rg3 {[%clk 0:00:09]}  Ra7 {[%clk 0:00:02]} 45. Bc2 {[%clk 0:00:09]}  Re7 {[%clk 0:00:03]} 46. Qd3 {[%clk 0:00:09]}  Ra7 {[%clk 0:00:03]} 47. Bb3 {[%clk 0:00:08]}  Ra3 {[%clk 0:00:03]} 48. Rxa2 {[%clk 0:00:08]}  Rxa2 {[%clk 0:00:03]} 49. Bxa2 {[%clk 0:00:09]}  Qf8 {[%clk 0:00:04]} 50. Bb1 {[%clk 0:00:09]}  Qg8 {[%clk 0:00:04]} 51. Rf3 {[%clk 0:00:08]}  Rf8 {[%clk 0:00:04]} 52. Qg6 {[%clk 0:00:06]}  Rf6 {[%clk 0:00:03]} 53. Qxh7+ {[%clk 0:00:05]}  Qxh7 {[%clk 0:00:03]} 54. Bxh7 {[%clk 0:00:05]}  Kxh7 {[%clk 0:00:04]} 55. Bxf6 {[%clk 0:00:06]}  gxf6 {[%clk 0:00:05]} 56. Rf1 {[%clk 0:00:05]}  Bb4 {[%clk 0:00:04]} 57. Kg1 {[%clk 0:00:03]}  e2 {[%clk 0:00:05]} 58. Kf2 {[%clk 0:00:04]}  exf1=Q+ {[%clk 0:00:05]} 59. Kxf1 {[%clk 0:00:05]}  h5 {[%clk 0:00:05]} 60. g4 {[%clk 0:00:04]}  Kg6 {[%clk 0:00:05]} 61. Ke2 {[%clk 0:00:05]}  Bc5 {[%clk 0:00:05]} 62. Kf3 {[%clk 0:00:05]}  hxg4+ {[%clk 0:00:06]} 63. hxg4 {[%clk 0:00:06]}  Kf7 {[%clk 0:00:06]} 64. Ke4 {[%clk 0:00:06]}  Kg6 {[%clk 0:00:07]} 65. Kf3 {[%clk 0:00:06]}  f5 {[%clk 0:00:07]} 66. Kg3 {[%clk 0:00:06]}  Bd6 {[%clk 0:00:04]} 67. g5 {[%clk 0:00:06]}  Kh5 {[%clk 0:00:05]} 68. Kf3 {[%clk 0:00:06]}  Kg6 {[%clk 0:00:04]} 69. Kg3 {[%clk 0:00:07]}  Bb4 {[%clk 0:00:04]} 70. Kf3 {[%clk 0:00:07]}  Kf7 {[%clk 0:00:05]} 71. Ke3 {[%clk 0:00:06]}  Ke7 {[%clk 0:00:04]} 72. Kf3 {[%clk 0:00:07]}  Bc3 {[%clk 0:00:05]} 73. Ke3 {[%clk 0:00:07]}  Bg7 {[%clk 0:00:05]} 74. Kd3 {[%clk 0:00:07]}  Kd6 {[%clk 0:00:06]} 75. Kc2 {[%clk 0:00:07]}  Bh8 {[%clk 0:00:06]} 76. Kb3 {[%clk 0:00:07]}  Kc5 {[%clk 0:00:06]} 77. Ka4 {[%clk 0:00:05]}  Kxc4 {[%clk 0:00:05]} 78. d6 {[%clk 0:00:05]}  Bc3 {[%clk 0:00:06]} 79. d7 {[%clk 0:00:04]}  Bb4 {[%clk 0:00:06]} 80. d8=Q {[%clk 0:00:03]}  b5# {[%clk 0:00:07]} 0-1


[Site "https://www.chess.com"]

[Event "Titled Tuesday Blitz April 11 Early 2023"]
[White "Eljanov, Pavel"]
[Black "Rohith Krishna S"]
[WhiteFideId "14102951"]
[BlackFideId "46617051"]
[WhiteElo "2598"]
[BlackElo "2270"]
[Result "1-0"]
[Round "10"]
[TimeControl "180+2"]
[Date "2023.04.11"]
[WhiteClock "0:00:53"]
[BlackClock "0:00:15"]

1. e4 {[%clk 0:03:00]}  c5 {[%clk 0:02:58]} 2. Nf3 {[%clk 0:03:01]}  d6 {[%clk 0:02:56]} 3. d4 {[%clk 0:03:01]}  cxd4 {[%clk 0:02:56]} 4. Nxd4 {[%clk 0:03:02]}  Nf6 {[%clk 0:02:57]} 5. Nc3 {[%clk 0:03:02]}  Nc6 {[%clk 0:02:58]} 6. Bg5 {[%clk 0:03:01]}  e6 {[%clk 0:02:58]} 7. Qd2 {[%clk 0:03:01]}  a6 {[%clk 0:02:59]} 8. O-O-O {[%clk 0:03:01]}  Bd7 {[%clk 0:02:59]} 9. Kb1 {[%clk 0:02:59]}  b5 {[%clk 0:02:56]} 10. f3 {[%clk 0:02:50]}  h6 {[%clk 0:02:53]} 11. Be3 {[%clk 0:02:49]}  Rc8 {[%clk 0:02:52]} 12. Nxc6 {[%clk 0:02:30]}  Bxc6 {[%clk 0:02:47]} 13. Ne2 {[%clk 0:02:27]}  e5 {[%clk 0:02:46]} 14. Nc3 {[%clk 0:02:13]}  Be7 {[%clk 0:02:43]} 15. g4 {[%clk 0:02:10]}  b4 {[%clk 0:02:05]} 16. Nd5 {[%clk 0:02:10]}  Bxd5 {[%clk 0:01:54]} 17. exd5 {[%clk 0:02:10]}  a5 {[%clk 0:01:55]} 18. h4 {[%clk 0:02:06]}  Nd7 {[%clk 0:01:53]} 19. Bb5 {[%clk 0:02:03]}  Bxh4 {[%clk 0:01:51]} 20. g5 {[%clk 0:02:01]}  Bg3 {[%clk 0:01:37]} 21. Rh3 {[%clk 0:01:53]}  Bf4 {[%clk 0:01:36]} 22. Bxf4 {[%clk 0:01:53]}  exf4 {[%clk 0:01:37]} 23. Qxf4 {[%clk 0:01:52]}  Qc7 {[%clk 0:01:36]} 24. Rh2 {[%clk 0:01:40]}  h5 {[%clk 0:01:21]} 25. g6 {[%clk 0:01:36]}  f6 {[%clk 0:01:07]} 26. Qf5 {[%clk 0:01:16]}  Kd8 {[%clk 0:01:06]} 27. f4 {[%clk 0:01:10]}  Nb6 {[%clk 0:00:40]} 28. Bc6 {[%clk 0:01:07]}  Qe7 {[%clk 0:00:30]} 29. Rxh5 {[%clk 0:01:06]}  Rxh5 {[%clk 0:00:28]} 30. Qxh5 {[%clk 0:01:06]}  Nc4 {[%clk 0:00:23]} 31. Qh3 {[%clk 0:01:00]}  Kc7 {[%clk 0:00:20]} 32. Qd3 {[%clk 0:00:57]}  Nb6 {[%clk 0:00:20]} 33. Qa6 {[%clk 0:00:56]}  Nd7 {[%clk 0:00:15]} 34. Qxa5+ {[%clk 0:00:53]} 1-0


[Site "https://www.chess.com"]